{"text_format":"1","workbook":"xlsx","n_sheets":3,"sheets":["حساب ثاني","كشف","الناسخة "],"not_rendered":{"charts":0,"images":2,"macros":1,"external_links":3,"defined_names":41,"comments":0,"pivot_tables":0},"unopened":[],"bounds":{"document_bytes":16777216,"sheet_cells":100000,"rows_first":2000,"rows_last":500,"rows_between":2000,"halvings":0,"cell_chars":16384,"cell_head_chars":4096},"cells_cut":0,"cells_raw":0,"read":"whole","date_system":"1900"}

{"sheet":"حساب ثاني","index":0,"n_rows":42,"n_cols":11,"rows_kept":42,"cut":false,"hidden":false,"merged":[]}
["ت","اسم العاملة ","التاريخ","وجهة العمل ","وقت الخروج","وقت العودة","صافي  ساعات العمل","الرصيد ","المبلغ الوراد ","المبلغ الصادر ","ملاحظات "]
[null,null,null,null,"10:30:00","15:00:00",{"$f":"F2-E2","v":0.1875},{"$f":"J2-I2","v":0}]
[null,null,null,null,"10:30:00","11:30:00",{"$f":"F3-E3","v":4.1666666666666685E-2},{"$f":"H2+J3-I3","v":0}]
[null,null,null,null,null,null,0,{"$f":"H3+J4-I4","v":0}]
[null,null,null,null,null,null,0,0]
[null,null,null,null,null,null,0,0]
[null,null,null,null,null,null,0,0]
[null,null,null,null,null,null,0,0]
[null,null,null,null,null,null,0,0]
[null,null,null,null,null,null,0,0]
[null,null,null,null,null,null,0,0]
[null,null,null,null,null,null,0,0]
[null,null,null,null,null,null,0,0]
[null,null,null,null,null,null,0,0]
[null,null,null,null,null,null,0,{"$f":"H14+J15-I15","v":0}]
[null,null,null,null,null,null,0,0]
[null,null,null,null,null,null,0,0]
[null,null,null,null,null,null,0,0]
[null,null,null,null,null,null,0,0]
[null,null,null,null,null,null,0,0]
[null,null,null,null,null,null,0,0]
[null,null,null,null,null,null,0,0]
[null,null,null,null,null,null,0,0]
[null,null,null,null,null,null,0,0]
[null,null,null,null,null,null,0,0]
[null,null,null,null,null,null,0,0]
[null,null,null,null,null,null,0,0]
[null,null,null,null,null,null,0,0]
[null,null,null,null,null,null,0,0]
[null,null,null,null,null,null,0,0]
[null,null,null,null,null,null,0,0]
[null,null,null,null,null,null,0,0]
[null,null,null,null,null,null,0,0]
[null,null,null,null,null,null,0,0]
[null,null,null,null,null,null,0,0]
[null,null,null,null,null,null,0,0]
[null,null,null,null,null,null,0,0]
[null,null,null,null,null,null,0,0]
[null,null,null,null,null,null,null,0]
[null,null,null,null,null,null,null,0]
[null,null,null,null,null,null,null,0]
[null,null,null,null,null,null,null,0]

{"sheet":"كشف","index":1,"n_rows":39,"n_cols":11,"rows_kept":39,"cut":false,"hidden":false,"merged":[]}
["ت","اسم الزبون","مدين","دائن","الرصيد المدين ","الرصيد الدائن ","التبويب","الملاحظات",{"$f":"SUBTOTAL(9,C:C)","v":0},{"$f":"SUBTOTAL(9,D:D)","v":0},{"$f":"I1-J1","v":0}]
[null,"حساب ثاني",null,null,null,null,null,null,"استخدام ","القبض ","الرصيد "]
[null,"حساب ثلبث"]
[]
[]
[]
[]
[]
[null,"حساب ثاني"]
[null,"الناسخة "]
[null,"حساب اربعة"]
[null,"حساب ثاني"]
[null,"حساب خمسة"]
[null,"حساب ثاني"]
[null,"حساب 6"]
[null,"حساب ثاني"]
[null,"حساب 8"]
[null,"حساب ثاني"]
[null,"حساب 8"]
[null,"حساب10"]
[null,"حساب ثاني"]
[null,"حساب 8"]
[null,"حساب10"]
[null,"حساب1"]
[null,"حساب ثاني"]
[null,"حساب 8"]
[null,"حساب10"]
[null,"حساب1"]
[null,"حساب 2"]
[null,"حساب ثاني"]
[null,"حساب2"]
[null,"حساب ثاني"]
[null,"حساب2"]
[null,"حرة2"]
[null,"حساب ثاني"]
[null,"حروف55"]
[null,"حساب ثاني"]
[null,"حروف55"]
[null,"حساب6"]

{"sheet":"الناسخة ","index":2,"n_rows":42,"n_cols":11,"rows_kept":42,"cut":false,"hidden":false,"merged":[]}
["ت","اسم العاملة ","التاريخ","وجهة العمل ","وقت الخروج","وقت العودة","صافي  ساعات العمل","الرصيد ","المبلغ الوراد ","المبلغ الصادر ","ملاحظات "]
[null,null,null,null,"10:30:00","15:00:00",{"$f":"F2-E2","v":0.1875},{"$f":"J2-I2","v":0}]
[null,null,null,null,"10:30:00","11:30:00",{"$f":"F3-E3","v":4.1666666666666685E-2},{"$f":"H2+J3-I3","v":0}]
[null,null,null,null,null,null,0,{"$f":"H3+J4-I4","v":0}]
[null,null,null,null,null,null,0,0]
[null,null,null,null,null,null,0,0]
[null,null,null,null,null,null,0,0]
[null,null,null,null,null,null,0,0]
[null,null,null,null,null,null,0,0]
[null,null,null,null,null,null,0,0]
[null,null,null,null,null,null,0,0]
[null,null,null,null,null,null,0,0]
[null,null,null,null,null,null,0,0]
[null,null,null,null,null,null,0,0]
[null,null,null,null,null,null,0,{"$f":"H14+J15-I15","v":0}]
[null,null,null,null,null,null,0,0]
[null,null,null,null,null,null,0,0]
[null,null,null,null,null,null,0,0]
[null,null,null,null,null,null,0,0]
[null,null,null,null,null,null,0,0]
[null,null,null,null,null,null,0,0]
[null,null,null,null,null,null,0,0]
[null,null,null,null,null,null,0,0]
[null,null,null,null,null,null,0,0]
[null,null,null,null,null,null,0,0]
[null,null,null,null,null,null,0,0]
[null,null,null,null,null,null,0,0]
[null,null,null,null,null,null,0,0]
[null,null,null,null,null,null,0,0]
[null,null,null,null,null,null,0,0]
[null,null,null,null,null,null,0,0]
[null,null,null,null,null,null,0,0]
[null,null,null,null,null,null,0,0]
[null,null,null,null,null,null,0,0]
[null,null,null,null,null,null,0,0]
[null,null,null,null,null,null,0,0]
[null,null,null,null,null,null,0,0]
[null,null,null,null,null,null,0,0]
[null,null,null,null,null,null,null,0]
[null,null,null,null,null,null,null,0]
[null,null,null,null,null,null,null,0]
[null,null,null,null,null,null,null,0]